bitfinex/quotes_SOLUSD_20251126
["timestamp","ask_amount","ask_price","bid_price","bid_amount"]
[1764167484843,10.62777871,137.1,137.09,0.2]
[1764167485034,12.35426806,137.1,137.09,0.2]
[1764167485222,20.29420834,137.1,137.09,0.2]
[1764167485425,9.23642963,137.09,137.08,0.2]
[1764167485625,20.29420834,137.09,137.08,0.2]
[1764167486537,27.58868642,137.09,137.08,0.2]
[1764167486933,0.14216157,137.08,137.07,0.2]
[1764167487143,33.34307234,137.08,137.07,0.2]
[1764167487355,9.23642963,137.07,137.06,0.2]
[1764167487683,17.03420834,137.07,137.06,0.2]
[1764167488359,19.86420834,137.07,137.06,0.2]
[1764167488856,16.60420834,137.07,137.06,0.2]
[1764167489076,19.86420834,137.07,137.06,0.2]
[1764167489574,16.46204677,137.07,137.06,0.2]
[1764167489760,16.17772363,137.07,137.06,0.2]
[1764167489949,7.36777871,137.08,137.06,0.2]
[1764167490147,29.58722692,137.15,137.06,0.85]
[1764167490148,7.36777871,137.09,137.06,0.85]
[1764167490353,7.36777871,137.09,137.06,0.2]
[1764167490354,8.80994492,137.08,137.06,0.2]
[1764167490686,3.26,137.07,137.06,0.85]
[1764167490852,3.26,137.07,137.06,0.2]
[1764167490853,19.43772363,137.07,137.06,0.2]
[1764167491167,20.29420834,137.07,137.06,0.2]
[1764167491575,9.23642963,137.06,137.01,0.2]
[1764167491784,16.17772363,137.02,137.01,0.2]
[1764167491980,19.86420834,137.02,137.01,0.2]
[1764167492492,12.92642963,137.02,137.01,0.2]
[1764167492704,19.86420834,137.02,137.01,0.2]
[1764167493150,9.23642963,137.01,137.0,0.2]
[1764167493350,19.86420834,137.01,137.0,0.2]
[1764167493551,16.60420834,137.01,137.0,0.2]
[1764167493751,16.46204677,137.01,137.0,0.2]
[1764167493961,19.72204677,137.01,137.0,0.2]
[1764167494160,9.66642963,137.01,137.0,0.2]
[1764167494488,16.60420834,137.01,137.0,0.2]
[1764167494691,19.86420834,137.01,137.0,0.2]
[1764167495492,9.09426806,136.97,136.96,0.2]
[1764167495654,9.23642963,136.97,136.96,0.2]
[1764167495978,20.29420834,136.97,136.96,0.2]
[1764167496158,27.66198705,136.97,136.96,0.2]
[1764167496364,25.40313206,136.95,136.94,0.2]
[1764167496572,32.91307234,136.95,136.94,0.2]
[1764167496784,9.23642963,136.94,136.86,0.2]
[1764167496985,16.46204677,136.92,136.87,8.01777871]
[1764167497153,8.80994492,136.88,136.86,0.2]
[1764167497352,16.59318714,136.92,136.86,0.2]
[1764167497353,19.43772363,136.87,136.86,0.2]
[1764167497552,19.72204677,136.87,136.86,0.2]
[1764167497782,36.60307234,136.87,136.86,0.2]
[1764167497952,25.54529363,136.85,136.84,0.2]
[1764167498160,9.09426806,136.8,136.77,0.2]
[1764167498361,16.60420834,136.8,136.77,0.2]
[1764167498684,25.11880892,136.78,136.77,0.2]
[1764167498876,36.17307234,136.78,136.77,0.2]
[1764167499061,36.40307234,136.78,136.77,0.2]
[1764167499466,36.40307234,136.78,136.67,7.31649023]
[1764167499467,9.23642963,136.77,136.67,0.65]
[1764167499666,32.91307234,136.75,136.67,0.65]
[1764167499864,36.17307234,136.75,136.67,0.65]
[1764167500161,7.36777871,136.68,136.64,0.65]
[1764167500364,16.308864,136.69,136.62,0.65]
[1764167500365,16.308864,136.66,136.62,0.65]
[1764167500567,7.36777871,136.65,136.62,0.65]
[1764167500784,10.64777871,136.64,136.62,0.65]
[1764167500962,3.28,136.64,136.62,0.65]
[1764167501170,3.28,136.63,136.62,0.65]
[1764167501551,3.28,136.63,136.58,0.65]
[1764167501753,10.64777871,136.63,136.58,8.01777871]
[1764167501958,8.80994492,136.65,136.62,7.36777871]
[1764167502158,8.80994492,136.67,136.63,7.36777871]
[1764167502358,16.17772363,136.67,136.62,7.36777871]
[1764167502768,16.17772363,136.67,136.63,0.65]
[1764167502769,8.80994492,136.65,136.63,0.65]
[1764167502984,12.08994492,136.65,136.63,0.65]
[1764167503179,19.45772363,136.65,136.61,0.65]
[1764167503480,12.08994492,136.65,136.62,0.65]
[1764167503670,3.28,136.65,136.62,8.01777871]
[1764167504077,3.28,136.65,136.63,0.69]
[1764167504270,7.36777871,136.69,136.64,7.36777871]
[1764167504453,12.08994492,136.68,136.63,0.69]
[1764167504659,16.22943114,136.68,136.64,12.94943114]
[1764167504861,16.22943114,136.68,136.6,0.69]
[1764167504862,8.80994492,136.64,136.6,0.69]
[1764167505082,25.03937606,136.64,136.6,0.69]
[1764167505392,12.08994492,136.64,136.6,0.69]
[1764167505567,12.08994492,136.64,136.61,12.94943114]
[1764167505770,3.28,136.64,136.62,12.94943114]
[1764167505963,3.28,136.64,136.6,0.69]
[1764167506160,8.80994492,136.63,136.6,0.69]
[1764167506487,25.11880892,136.6,136.5,0.1]
[1764167506694,21.75937606,136.57,136.53,0.69]
[1764167506867,21.75937606,136.57,136.5,0.1]
[1764167506868,21.75937606,136.55,136.5,13.73943114]
[1764167507059,16.308864,136.54,136.51,0.69]
[1764167507254,3.28,136.53,136.51,13.63943114]
[1764167507455,3.28,136.53,136.51,0.69]
[1764167507716,3.28,136.53,136.52,0.69]
[1764167507877,3.28,136.56,136.52,13.63943114]
[1764167508074,3.28,136.58,136.55,12.94943114]
[1764167508394,3.28,136.58,136.51,16.59318714]
[1764167508395,3.28,136.58,136.56,13.63943114]
[1764167508568,3.28,136.58,136.56,20.96199677]
[1764167508765,12.08994492,136.59,136.57,0.69]
[1764167508965,12.08994492,136.59,136.57,13.63943114]
[1764167509167,8.80994492,136.62,136.57,0.69]
[1764167509371,8.80994492,136.62,136.6,12.94943114]
[1764167509563,25.11880892,136.62,136.6,12.94943114]
[1764167509986,25.11880892,136.62,136.61,13.63943114]
[1764167510386,25.11880892,136.62,136.6,12.94943114]
[1764167510566,25.11880892,136.62,136.61,0.69]
[1764167511088,3.28,136.63,136.61,13.63943114]
[1764167511283,12.08994492,136.63,136.62,0.69]
[1764167511662,8.80994492,136.63,136.61,12.94943114]
[1764167511862,3.28,136.64,136.62,13.63943114]
[1764167512064,8.80994492,136.66,136.63,12.94943114]
[1764167512274,8.80994492,136.66,136.64,12.94943114]
[1764167512466,16.308864,136.65,136.64,13.63943114]
[1764167512679,8.80994492,136.66,136.64,20.26793231]
[1764167512981,3.28,136.68,136.65,13.63943114]
[1764167513186,16.308864,136.67,136.66,12.94943114]
[1764167513397,0.23,136.74,136.66,13.63943114]
[1764167513591,16.22943114,136.73,136.68,12.94943114]
[1764167513766,16.308864,136.7,136.68,12.94943114]
[1764167513960,16.308864,136.7,136.64,7.31850117]
[1764167513961,16.308864,136.7,136.64,25.61475409]
[1764167514269,16.308864,136.7,136.68,12.94943114]
[1764167514772,16.308864,136.7,136.68,13.63943114]
[1764167514979,3.28,136.71,136.69,12.94943114]
[1764167515365,16.308864,136.7,136.69,0.69]
[1764167515779,16.308864,136.7,136.69,13.63943114]
[1764167516184,3.28,136.71,136.69,13.63943114]
[1764167516487,12.08994492,136.71,136.69,12.94943114]
[1764167516683,25.11880892,136.7,136.69,0.69]
[1764167517087,25.11880892,136.7,136.66,13.63943114]
[1764167517490,25.11880892,136.7,136.67,13.63943114]
[1764167517705,25.11880892,136.7,136.68,12.94943114]
[1764167518001,28.39880892,136.7,136.67,13.63943114]
[1764167518198,28.39880892,136.7,136.66,12.94943114]
[1764167518400,41.34824006,136.7,136.66,12.94943114]
[1764167518603,25.11880892,136.7,136.68,12.94943114]
[1764167518770,25.11880892,136.7,136.66,7.31741485]
[1764167518771,16.308864,136.7,136.69,13.63943114]
[1764167518975,16.308864,136.7,136.69,0.69]
[1764167519297,25.11880892,136.7,136.69,0.69]
[1764167519474,16.308864,136.7,136.67,13.63943114]
[1764167519910,16.308864,136.7,136.68,0.69]
[1764167520071,16.308864,136.7,136.66,7.31741485]
[1764167520394,8.80994492,136.69,136.67,0.69]
[1764167520599,9.03994492,136.78,136.68,20.26570651]
[1764167520786,8.80994492,136.75,136.71,12.94943114]
[1764167520986,3.28,136.74,136.72,12.94943114]
[1764167521299,8.80994492,136.75,136.69,0.69]
[1764167521508,16.308864,136.73,136.72,12.94943114]
[1764167521708,8.80994492,136.72,136.69,0.69]
[1764167521917,7.31104366,136.78,136.7,12.94943114]
[1764167521918,16.308864,136.75,136.7,12.94943114]
[1764167522201,16.308864,136.73,136.72,12.94943114]
[1764167522575,8.80994492,136.74,136.72,13.63943114]
[1764167522775,3.28,136.75,136.73,13.63943114]
[1764167522987,8.80994492,136.79,136.74,12.94943114]
[1764167523305,8.80994492,136.76,136.74,13.63943114]
[1764167523480,8.80994492,136.76,136.75,0.69]
[1764167523806,8.80994492,136.75,136.73,12.94943114]
[1764167524305,12.94943114,136.78,136.74,13.63943114]
[1764167524603,3.28,136.78,136.74,8.00295151]
[1764167524799,7.30894776,136.82,136.74,8.00295151]
[1764167524800,9.03994492,136.84,136.76,12.94943114]
[1764167525002,8.80994492,136.8,136.77,12.94943114]
[1764167525219,7.53790102,136.84,136.79,12.94943114]
[1764167525220,3.28,136.84,136.79,12.94943114]
[1764167525504,19.588864,136.84,136.82,12.94943114]
[1764167525705,8.80994492,136.81,136.76,3.28]
[1764167526006,16.308864,136.82,136.74,42.18901125]
[1764167526007,8.80994492,136.83,136.8,12.94943114]
[1764167526173,21.75937606,136.81,136.74,0.66]
[1764167526378,8.80994492,136.78,136.75,0.66]
[1764167526588,8.80994492,136.77,136.73,7.97364757]
[1764167526824,3.28,136.77,136.74,12.94943114]
[1764167527042,8.80994492,136.76,136.72,0.66]
[1764167527335,21.75937606,136.73,136.68,0.66]
[1764167527488,8.80994492,136.71,136.68,0.66]
[1764167527695,16.45102557,136.75,136.7,12.94943114]
[1764167527696,16.308864,136.75,136.7,12.94943114]
[1764167527919,16.308864,136.76,136.74,12.94943114]
[1764167528215,28.39880892,136.78,136.74,12.94943114]
[1764167528413,28.39880892,136.78,136.75,0.66]
[1764167528618,41.34824006,136.78,136.74,13.60943114]
[1764167528805,12.94943114,136.77,136.72,13.60943114]
[1764167529003,25.11880892,136.75,136.72,0.66]
[1764167529525,3.28,136.77,136.74,12.94943114]
[1764167529717,8.80994492,136.76,136.72,0.66]
[1764167529892,8.80994492,136.76,136.73,13.60943114]
[1764167530235,16.308864,136.75,136.73,13.60943114]
[1764167530402,8.80994492,136.76,136.74,13.60943114]
[1764167530608,8.80994492,136.76,136.72,0.66]
[1764167530822,8.80994492,136.76,136.73,12.94943114]
[1764167531015,0.14216157,136.83,136.75,12.94943114]
[1764167531218,12.94943114,136.8,136.72,0.66]
[1764167531426,28.39880892,136.8,136.76,12.94943114]
[1764167531923,28.39880892,136.8,136.76,13.60943114]
[1764167532120,25.03937606,136.8,136.76,0.66]
[1764167532326,8.80994492,136.78,136.74,13.60943114]
[1764167532522,8.80994492,136.78,136.75,7.9725155]
[1764167532711,19.588864,136.79,136.75,20.92194664]
[1764167532900,19.588864,136.79,136.76,0.66]
[1764167533225,19.588864,136.79,136.76,13.60943114]
[1764167533522,8.80994492,136.78,136.74,7.31298324]
[1764167533728,8.80994492,136.78,136.75,12.94943114]
[1764167534026,8.80994492,136.76,136.72,13.60943114]
[1764167534221,8.80994492,136.76,136.73,13.60943114]
[1764167534925,12.08994492,136.76,136.73,13.60943114]
[1764167535105,12.08994492,136.76,136.72,12.94943114]
[1764167535302,12.08994492,136.76,136.73,13.60943114]
[1764167535498,8.80994492,136.74,136.7,0.66]
[1764167535719,8.80994492,136.74,136.7,13.60943114]
[1764167535916,3.28,136.73,136.7,13.60943114]
[1764167536113,16.22943114,136.73,136.68,20.92577796]
[1764167536315,3.28,136.73,136.69,12.94943114]
[1764167536504,3.28,136.73,136.69,13.60943114]
[1764167536720,8.80994492,136.72,136.7,13.60943114]
[1764167537221,8.80994492,136.72,136.69,12.94943114]
[1764167537524,21.75937606,136.72,136.68,13.60943114]
[1764167537700,19.588864,136.73,136.7,12.94943114]
[1764167537901,19.588864,136.73,136.71,12.94943114]
[1764167538312,3.28,136.76,136.72,13.60943114]
[1764167538506,3.28,136.76,136.73,12.94943114]
[1764167538799,8.80994492,136.77,136.73,26.25771902]
[1764167539004,3.28,136.82,136.74,0.66]
[1764167539311,19.588864,136.82,136.74,0.66]
[1764167539527,12.94943114,136.81,136.77,12.94943114]
[1764167539828,12.94943114,136.8,136.76,12.94943114]
[1764167540034,12.08994492,136.79,136.75,12.94943114]
[1764167540406,25.03937606,136.79,136.75,13.60943114]
[1764167540710,12.08994492,136.79,136.75,13.60943114]
[1764167541112,25.03937606,136.79,136.75,13.60943114]
[1764167541951,12.08994492,136.79,136.75,13.60943114]
[1764167542431,12.08994492,136.79,136.75,12.94943114]
[1764167542608,25.03937606,136.79,136.74,20.26213742]
[1764167542802,25.03937606,136.79,136.75,12.94943114]
[1764167543206,12.08994492,136.79,136.76,12.94943114]
[1764167543808,25.03937606,136.79,136.74,12.94943114]
[1764167544017,25.26937606,136.79,136.74,12.94943114]
[1764167544213,25.03937606,136.79,136.75,13.60943114]
[1764167544440,25.03937606,136.79,136.74,0.66]
[1764167544620,25.03937606,136.79,136.74,13.60943114]
[1764167544823,12.94943114,136.78,136.73,20.26290275]
[1764167545146,8.80994492,136.76,136.72,0.66]
[1764167545306,8.80994492,136.74,136.71,12.94943114]
[1764167545507,8.80994492,136.74,136.71,13.60943114]
[1764167545714,8.80994492,136.74,136.72,0.66]
[1764167545933,8.80994492,136.74,136.72,13.60943114]
[1764167546129,3.28,136.73,136.72,13.60943114]
[1764167546327,16.308864,136.77,136.73,0.66]
[1764167546520,1.99999999,136.86,136.73,0.66]
[1764167546521,8.80994492,136.81,136.76,12.94943114]
[1764167546836,16.308864,136.8,136.79,12.94943114]
[1764167547016,8.80994492,136.8,136.76,12.94943114]
[1764167547334,8.80994492,136.8,136.77,12.94943114]
[1764167547538,16.308864,136.79,136.77,0.66]
[1764167548033,16.308864,136.79,136.77,13.60943114]
[1764167548239,8.80994492,136.79,136.76,12.94943114]
[1764167548746,8.80994492,136.79,136.77,13.60943114]
[1764167549441,16.308864,136.78,136.75,12.94943114]
[1764167549735,3.28,136.77,136.76,12.94943114]
[1764167549940,16.308864,136.78,136.76,13.60943114]
[1764167550231,3.28,136.77,136.76,13.60943114]
[1764167550546,16.308864,136.78,136.76,13.60943114]
[1764167550717,25.11880892,136.78,136.77,12.94943114]
[1764167550912,12.94943114,136.82,136.77,12.94943114]
[1764167551116,0.23,136.87,136.81,12.94943114]
[1764167551435,0.2,136.88,136.86,12.94943114]
[1764167551739,0.2,136.88,136.87,12.94943114]
[1764167552233,0.2,136.88,136.87,13.60943114]
[1764167552442,0.2,136.88,136.87,0.66]
[1764167552621,0.2,136.88,136.87,13.60943114]
[1764167552818,9.00994492,136.88,136.84,0.66]
[1764167553128,3.28,136.87,136.86,12.94943114]
[1764167553911,3.28,136.87,136.84,12.94943114]
[1764167554149,3.28,136.87,136.81,3.28]
[1764167554150,8.80994492,136.86,136.83,12.94943114]
[1764167554352,8.80994492,136.86,136.84,12.94943114]
[1764167554514,8.80994492,136.86,136.83,13.60943114]
[1764167555012,8.80994492,136.86,136.81,7.30918955]
[1764167555013,3.28,136.85,136.82,12.94943114]
[1764167555216,3.28,136.85,136.82,13.60943114]
[1764167555432,3.28,136.85,136.82,0.66]
[1764167555622,3.28,136.85,136.82,13.60943114]
[1764167556235,8.80994492,136.86,136.82,13.60943114]
[1764167556413,3.28,136.85,136.82,13.60943114]
[1764167556815,8.80994492,136.86,136.84,12.94943114]
[1764167557026,12.08994492,136.85,136.83,0.66]
[1764167557214,8.80994492,136.85,136.83,20.91772083]
[1764167557417,3.28,136.84,136.83,20.91772083]
[1764167557617,3.28,136.84,136.83,13.60943114]
[1764167558429,3.28,136.84,136.81,7.96922862]
[1764167558635,3.28,136.84,136.82,12.94943114]
[1764167558835,3.28,136.84,136.82,20.91824262]
[1764167559222,3.28,136.84,136.83,12.94943114]
[1764167559435,3.28,136.84,136.81,7.9692913]
[1764167559614,3.28,136.84,136.81,0.66]
[1764167559615,16.22943114,136.84,136.81,0.66]
[1764167559819,3.28,136.84,136.81,0.66]
[1764167560042,8.80994492,136.83,136.79,0.66]
[1764167560261,8.80994492,136.83,136.79,13.60943114]
[1764167560543,3.28,136.82,136.81,12.94943114]
[1764167560856,16.308864,136.84,136.81,12.94943114]
[1764167560857,3.28,136.83,136.81,20.25841802]
[1764167561034,0.2,136.88,136.82,13.60943114]
[1764167561346,3.28,136.87,136.83,13.60943114]
[1764167561542,3.28,136.87,136.81,20.91841802]
[1764167561543,21.75937606,136.86,136.81,20.91841802]
[1764167561837,8.80994492,136.86,136.83,12.94943114]
[1764167562044,3.28,136.85,136.83,12.94943114]
[1764167562258,3.28,136.85,136.83,13.60943114]
[1764167562426,3.28,136.85,136.81,20.25841802]
[1764167562782,0.2,136.88,136.82,0.80216157]
[1764167563056,0.2,136.88,136.86,12.94943114]
[1764167563234,9.00994492,136.88,136.84,12.94943114]
[1764167563549,9.00994492,136.88,136.83,0.66]
[1764167563850,9.00994492,136.88,136.85,12.94943114]
[1764167564070,16.308864,136.87,136.85,13.66943114]
[1764167564254,3.28,136.86,136.85,12.94943114]
[1764167564568,12.08994492,136.86,136.85,12.94943114]
[1764167564943,3.28,136.86,136.85,20.97670187]
[1764167565140,16.308864,136.87,136.85,20.97670187]
[1764167565345,3.28,136.86,136.85,0.72]
[1764167566781,3.28,136.86,136.85,8.13469282]
[1764167566970,3.28,136.86,136.85,15.44196355]
[1764167567164,0.2,136.88,136.85,15.44196355]
[1764167567349,0.2,136.88,136.86,0.72]
[1764167567665,3.28,136.87,136.86,0.72]
[1764167568474,3.28,136.87,136.86,8.13469282]
[1764167568771,7.50313356,136.93,136.86,8.13469282]
[1764167568772,0.2,136.93,136.86,15.54938564]
[1764167568938,0.2,136.93,136.92,7.41469282]
[1764167568939,3.48,136.93,136.92,7.41469282]
[1764167569143,0.2,136.93,136.92,7.41469282]
[1764167569357,0.2,136.93,136.92,8.13469282]
[1764167570646,8.80994492,136.98,136.92,8.56117753]
[1764167570839,0.69,137.04,136.97,7.41469282]
[1764167571052,3.48,137.01,137.0,7.41469282]
[1764167571662,0.2,137.01,137.0,8.13469282]
[1764167572066,2.28,137.06,137.0,8.27685439]
[1764167572251,2.28,137.06,137.03,7.41469282]
[1764167572459,8.80994492,137.05,137.03,7.41469282]
[1764167573280,8.80994492,137.05,137.01,8.01867247]
[1764167573453,8.80994492,137.05,136.99,7.29929576]
[1764167573454,33.22350174,137.05,136.99,7.29929576]
[1764167573649,25.80880892,137.05,137.01,7.41469282]
[1764167573889,3.28,137.04,137.02,7.41469282]
[1764167574463,8.80994492,137.03,137.01,7.41469282]
[1764167574654,8.80994492,137.03,137.02,7.41469282]
[1764167574960,12.08994492,137.03,137.01,7.41469282]
[1764167575969,12.08994492,137.03,137.01,15.43332674]
[1764167576155,3.28,137.03,137.02,7.41469282]
[1764167576568,3.28,137.03,137.01,15.43332674]
[1764167576880,3.28,137.03,137.0,14.71377259]
[1764167577089,3.28,137.03,137.0,15.43377259]
[1764167577256,3.28,137.03,137.01,7.41469282]
[1764167577464,3.28,137.03,137.0,8.01907977]
[1764167577662,3.28,137.03,137.0,14.71377259]
[1764167578177,3.97,137.03,136.99,7.29963667]
[1764167578385,16.91463774,137.02,136.97,7.41469282]
[1764167578558,8.80994492,136.98,136.95,14.71642871]
[1764167578757,3.28,136.97,136.95,14.71642871]
[1764167578968,3.28,136.97,136.95,15.43642871]
[1764167579186,3.28,136.97,136.96,7.41469282]
[1764167579370,3.28,136.98,136.96,8.13469282]
[1764167579567,3.28,136.98,136.96,7.41469282]
[1764167579882,9.49994492,136.97,136.91,22.25957189]
[1764167580065,8.80994492,136.97,136.94,7.41469282]
[1764167580270,16.308864,136.99,136.96,7.41469282]
[1764167580476,3.28,136.98,136.97,7.41469282]
[1764167581086,8.80994492,136.97,136.95,61.9]
[1764167581264,16.91463774,136.97,136.95,61.9]
[1764167581459,9.49994492,136.96,136.95,61.9]
[1764167581668,8.80994492,136.95,136.91,77.33867462]
[1764167581963,16.22463774,136.93,136.89,0.72]
[1764167582158,16.22463774,136.95,136.9,7.41469282]
[1764167582354,8.80994492,136.93,136.9,7.41469282]
[1764167582653,8.80994492,136.93,136.9,0.72]
[1764167582857,3.28,136.92,136.89,14.71979254]
[1764167583283,8.80994492,136.95,136.91,7.41469282]
[1764167583487,3.28,136.94,136.93,7.41469282]
[1764167583783,3.28,136.95,136.92,7.41469282]
[1764167583983,16.22463774,136.93,136.89,7.30509972]
[1764167584173,3.28,136.92,136.89,7.41469282]
[1764167584481,3.28,136.92,136.89,8.13469282]
[1764167584860,3.28,136.92,136.88,25.56984218]
[1764167584861,9.49994492,136.91,136.88,7.41469282]
[1764167585063,8.80994492,136.91,136.88,8.13469282]
[1764167585275,8.80994492,136.91,136.88,0.72]
[1764167585476,8.80994492,136.89,136.85,8.12469282]
[1764167585675,3.28,136.88,136.85,8.12469282]
[1764167585875,8.80994492,136.89,136.86,7.41469282]
[1764167586076,3.28,136.89,136.88,7.30566919]
[1764167586266,3.28,136.89,136.88,14.72036201]
[1764167586476,3.28,136.89,136.88,15.43036201]
[1764167587086,8.80994492,136.92,136.88,15.43036201]
[1764167587284,3.28,136.91,136.89,7.41469282]
[1764167587486,16.22463774,136.9,136.86,7.30666966]
[1764167587780,16.22463774,136.9,136.86,14.72136248]
[1764167587980,16.22463774,136.9,136.82,80.88165289]
[1764167587981,8.07469282,136.89,136.82,80.88165289]
[1764167588186,0.66,136.89,136.85,7.41469282]
[1764167588483,8.80994492,136.9,136.88,7.41469282]
[1764167588660,3.28,136.9,136.88,7.41469282]
[1764167589772,8.07469282,136.92,136.88,7.41469282]
[1764167589972,12.08994492,136.91,136.88,7.41469282]
[1764167590182,12.74994492,136.91,136.87,14.72039254]
[1764167590382,12.74994492,136.91,136.87,15.43039254]
[1764167590889,20.16463774,136.91,136.87,7.30569972]
[1764167591072,8.80994492,136.91,136.88,0.71]
[1764167591390,8.80994492,136.92,136.89,7.41469282]
[1764167591578,8.80994492,136.92,136.87,14.72039254]
[1764167591579,16.88463774,136.92,136.87,14.72039254]
[1764167591777,0.66,136.91,136.87,7.30569972]
[1764167591979,3.28,136.9,136.87,15.43039254]
[1764167592180,3.28,136.9,136.88,14.72009033]
[1764167592865,8.80994492,136.89,136.87,61.9]
[1764167593062,9.46994492,136.89,136.87,61.9]
[1764167593282,0.66,136.88,136.85,76.62174392]
[1764167593483,9.46994492,136.88,136.85,76.62174392]
[1764167593683,3.28,136.87,136.85,69.31469282]
[1764167594190,3.28,136.87,136.85,61.9]
[1764167594365,3.98,136.87,136.85,61.9]
[1764167594761,3.28,136.87,136.85,61.9]
[1764167594966,3.98,136.87,136.85,61.9]
[1764167595184,9.50994492,136.86,136.83,76.62281041]
[1764167595366,9.50994492,136.86,136.83,61.9]
[1764167595676,8.80994492,136.84,136.81,14.72397365]
[1764167595878,3.28,136.83,136.81,14.72397365]
[1764167596277,3.28,136.83,136.81,15.41397365]
[1764167596478,3.28,136.83,136.8,7.30980609]
[1764167596683,8.80994492,136.82,136.79,7.41469282]
[1764167596872,9.50994492,136.82,136.78,14.72554949]
[1764167597397,9.50994492,136.82,136.78,7.41469282]
[1764167597616,8.80994492,136.78,136.74,0.1]
[1764167597905,0.7,136.81,136.74,0.1]
[1764167597906,8.80994492,136.76,136.74,0.1]
[1764167598084,3.28,136.75,136.74,0.1]
[1764167598287,3.28,136.75,136.74,7.51469282]
[1764167598693,12.08994492,136.75,136.74,0.1]
[1764167599885,8.80994492,136.75,136.74,0.1]
[1764167600090,12.08994492,136.75,136.74,0.1]
[1764167600696,8.80994492,136.78,136.74,8.20469282]
[1764167601000,8.80994492,136.78,136.75,8.10469282]
[1764167601201,8.80994492,136.78,136.74,0.1]
[1764167601202,8.80994492,136.76,136.74,0.1]
[1764167601785,3.28,136.75,136.74,0.1]
[1764167602605,3.98,136.75,136.74,0.1]
[1764167602776,20.20463774,136.75,136.74,0.1]
[1764167603197,12.08994492,136.75,136.74,0.1]
[1764167605389,16.92463774,136.75,136.74,0.1]
[1764167605593,20.20463774,136.75,136.74,0.1]
[1764167605983,27.51725199,136.75,136.74,0.1]
[1764167606703,20.20463774,136.75,136.74,0.1]
[1764167607007,27.51725199,136.75,136.74,0.1]
[1764167607305,20.20463774,136.75,136.74,0.1]
[1764167608304,27.51725199,136.75,136.74,0.1]
[1764167609207,27.9437367,136.75,136.74,0.1]
[1764167609409,25.11880892,136.71,136.64,8.10469282]
[1764167609590,25.11880892,136.71,136.62,0.14216157]
[1764167609591,16.22463774,136.68,136.63,7.41469282]
[1764167609789,3.28,136.67,136.63,14.73338883]
[1764167609985,3.28,136.67,136.64,0.69]
[1764167610701,3.28,136.67,136.65,7.3179656]
[1764167610897,3.28,136.68,136.65,14.73265842]
[1764167611104,8.80994492,136.71,136.67,7.41469282]
[1764167611414,3.28,136.7,136.68,7.41469282]
[1764167611789,3.28,136.7,136.69,0.69]
[1764167612329,8.80994492,136.72,136.68,7.41469282]
[1764167612515,3.28,136.71,136.69,0.69]
[1764167612694,3.28,136.71,136.68,8.10469282]
[1764167612897,3.28,136.71,136.68,15.42055724]
[1764167613113,8.80994492,136.7,136.68,0.69]
[1764167613922,16.92463774,136.7,136.66,7.31721226]
[1764167614714,16.22463774,136.68,136.63,26.30657736]
[1764167614915,8.80994492,136.68,136.64,7.41469282]
[1764167615127,3.28,136.67,136.64,8.10469282]
[1764167615798,3.28,136.67,136.64,0.69]
[1764167616605,3.28,136.66,136.64,0.69]
[1764167616899,3.28,136.66,136.65,7.3179656]
[1764167617404,8.80994492,136.68,136.65,7.3179656]
[1764167617405,3.28,136.67,136.65,8.0079656]
[1764167617600,3.28,136.67,136.61,0.28432314]
[1764167617601,10.69469282,136.67,136.62,15.42407439]
[1764167617819,7.41469282,136.65,136.61,7.31989843]
[1764167618010,10.69469282,136.64,136.6,24.41943624]
[1764167618607,10.69469282,136.64,136.6,8.11057224]
[1764167618817,11.39469282,136.64,136.6,0.79]
[1764167619203,3.28,136.64,136.6,15.52525148]
[1764167619696,3.28,136.64,136.6,8.11055866]
[1764167619697,10.69469282,136.64,136.6,8.11055866]
[1764167621102,0.7,136.63,136.6,7.42055866]
[1764167621304,0.7,136.63,136.6,0.1]
[1764167621825,8.11469282,136.63,136.6,0.1]
[1764167622424,8.80994492,136.62,136.6,0.1]
[1764167622630,12.08994492,136.61,136.6,0.1]